fUST/lending_fUST_20260222
["ID","MTS","AMOUNT","RATE_DAILY","PERIOD"]
[406325099,1771741841643,-1000.0,0.00014247,2]
[406325100,1771741841652,-502.64626154,0.00014247,2]
[406325101,1771741841661,-1000.0,0.00014247,2]
[406325102,1771741841670,-1000.0,0.00014247,2]
[406325103,1771741841681,-1000.0,0.00014247,2]
[406325104,1771741841690,-1000.0,0.00014247,2]
[406325105,1771741841699,-537.36748911,0.00014247,2]
[406325106,1771741841708,-1000.0,0.00014247,2]
[406325107,1771741841717,-1000.0,0.00014247,2]
[406325108,1771741841726,-1000.0,0.00014247,2]
[406325109,1771741841736,-1003.62368851,0.00014247,2]
[406325110,1771741841745,-1000.0,0.00014247,2]
[406325111,1771741841754,-1000.0,0.00014247,2]
[406325112,1771741841763,-1000.0,0.00014247,2]
[406325113,1771741841772,-1089.39706985,0.00014247,2]
[406325114,1771741841781,-168.0,0.00014262,2]
[406325115,1771741841790,-168.0,0.00014295,2]
[406325116,1771741841798,-487.0,0.00014322,2]
[406325117,1771741841807,-487.0,0.00014322,2]
[406325118,1771741841816,-487.0,0.00014322,2]
[406325119,1771741841826,-487.0,0.00014322,2]
[406325120,1771741841835,-487.0,0.00014322,2]
[406325121,1771741841844,-487.0,0.00014322,2]
[406325122,1771741841853,-487.0,0.00014322,2]
[406325123,1771741841862,-487.0,0.00014322,2]
[406325124,1771741841872,-487.0,0.00014322,2]
[406325125,1771741841880,-487.0,0.00014322,2]
[406325126,1771741841890,-487.0,0.00014322,2]
[406325127,1771741841899,-487.0,0.00014322,2]
[406325128,1771741841907,-487.0,0.00014322,2]
[406325129,1771741841916,-487.0,0.00014322,2]
[406325130,1771741841925,-487.0,0.00014322,2]
[406325131,1771741841935,-487.0,0.00014322,2]
[406325132,1771741841948,-487.0,0.00014322,2]
[406325133,1771741841957,-487.0,0.00014322,2]
[406325134,1771741841966,-487.0,0.00014322,2]
[406325135,1771741841976,-487.0,0.00014322,2]
[406325136,1771741841987,-487.0,0.00014322,2]
[406325137,1771741841996,-487.0,0.00014322,2]
[406325138,1771741842005,-487.0,0.00014322,2]
[406325139,1771741842014,-487.0,0.00014322,2]
[406325140,1771741842024,-487.0,0.00014322,2]
[406325141,1771741842033,-487.0,0.00014322,2]
[406325142,1771741842042,-487.0,0.00014322,2]
[406325143,1771741842052,-487.0,0.00014322,2]
[406325144,1771741842061,-487.0,0.00014322,2]
[406325145,1771741842070,-487.0,0.00014322,2]
[406325146,1771741842079,-565.52,0.00014322,2]
[406325147,1771741842089,-1500.0,0.00014368,2]
[406325148,1771741842098,-1500.0,0.00014368,2]
[406325149,1771741842107,-1500.0,0.00014368,2]
[406325150,1771741842116,-1500.0,0.00014368,2]
[406325151,1771741842125,-1500.0,0.00014368,2]
[406325152,1771741842134,-320.54504853,0.00014368,2]
[406325153,1771741842143,-1500.0,0.00014368,2]
[406325154,1771741842152,-1500.0,0.00014368,2]
[406325155,1771741842162,-1500.0,0.00014368,2]
[406325156,1771741842171,-1500.0,0.00014368,2]
[406325157,1771741842181,-1500.0,0.00014368,2]
[406325158,1771741842190,-1500.0,0.00014368,2]
[406325159,1771741842199,-288.1735126,0.0001446,2]
[406325160,1771741842208,-288.1735126,0.0001446,2]
[406325161,1771741842217,-231.0,0.00014562,2]
[406325162,1771741842226,-503.58763659,0.000147,5]
[406325163,1771741842235,-500.0,0.000147,5]
[406325164,1771741842244,-1500.0,0.00014795,2]
[406325165,1771741842253,-1500.0,0.00014795,2]
[406325166,1771741842262,-1500.0,0.00014795,2]
[406325167,1771741842271,-1021.63925312,0.00014795,2]
[406325168,1771741842281,-303.89809303,0.00014795,2]
[406325169,1771741842290,-288.34142436,0.00014795,2]
[406325170,1771741842299,-435.56272721,0.00014795,2]
[406325171,1771741842307,-1027.6004774,0.00014795,2]
[406325172,1771741842316,-515.3681303,0.00014795,2]
[406325173,1771741842325,-1500.0,0.00014795,2]
[406325174,1771741842334,-1500.0,0.00014795,2]
[406325175,1771741842343,-1500.0,0.00014795,2]
[406325176,1771741842352,-349.0830158,0.00014795,2]
[406325177,1771741842362,-503.17487649,0.00014795,2]
[406325178,1771741842371,-342.53626291,0.00014795,2]
[406325179,1771741842380,-201.14,0.000148,2]
[406325180,1771741842389,-1466.24462376,0.00014916,2]
[406325181,1771741842398,-511.89712085,0.00014916,2]
[406325182,1771741842407,-1835.53345579,0.00014916,2]
[406325183,1771741842416,-2000.0,0.00014916,2]
[406325184,1771741842425,-1075.57483565,0.00014916,2]
[406325185,1771741842434,-1963.15738854,0.00014916,2]
[406325186,1771741842443,-2000.0,0.00014916,2]
[406325187,1771741842452,-806.52582696,0.00014916,2]
[406325188,1771741842461,-2000.0,0.00014916,2]
[406325189,1771741842471,-473.46640039,0.00014916,2]
[406325191,1771741842480,-2000.0,0.00014916,2]
[406325195,1771741842550,-10009.0,0.00015,2]
[406325196,1771741842559,-53020.69705136,0.00015,2]
[406325197,1771741842568,-2739.60619575,0.00015,2]
[406325198,1771741842577,-182.9899245,0.00015068,2]
[406325199,1771741842586,-1000.0,0.00015317,2]
[406325200,1771741842595,-492.0,0.00015317,2]
[406325201,1771741842604,-503.33294941,0.00015342,2]
[406325202,1771741842613,-2000.0,0.00015342,2]
[406325203,1771741842622,-2000.0,0.00015342,2]
[406325204,1771741842631,-1266.21564162,0.00015342,2]
[406325206,1771741842640,-651.39616762,0.00015342,2]
[406325208,1771741842650,-2000.0,0.00015342,2]
[406325210,1771741842659,-737.95216064,0.00015464,2]
[406325212,1771741842668,-2500.0,0.00015464,2]
[406325214,1771741842678,-2046.00503798,0.00015464,2]
[406325215,1771741842689,-2500.0,0.00015464,2]
[406325217,1771741842700,-156.6,0.00015604,2]
[406325218,1771741842709,-5000.0,0.0001564,2]
[406325219,1771741842718,-463.433,0.000157,2]
[406325220,1771741842726,-500.0,0.000157,2]
[406325221,1771741842735,-500.0,0.000157,2]
[406325223,1771741842745,-2000.0,0.000157,2]
[406325224,1771741842753,-800.0,0.0001576,2]
[406325225,1771741842763,-2000.0,0.000158,2]
[406325226,1771741842772,-405.42139715,0.0001589,2]
[406325227,1771741842781,-500.0,0.0001589,2]
[406325229,1771741842789,-2000.0,0.000159,2]
[406325230,1771741842799,-244.6323877,0.00016,2]
[406325231,1771741842807,-1500.0,0.00016,2]
[406325232,1771741842816,-372.0942446,0.00016012,2]
[406325233,1771741842826,-1907.75307812,0.00016012,2]
[406325234,1771741842835,-258.0,0.00016562,2]
[406325235,1771741842845,-75532.45583964,0.00016634,2]
[406325236,1771741842854,-150.0,0.0001674,2]
[406325237,1771741842863,-1000.0,0.00016849,2]
[406325238,1771741842873,-791.0,0.00016849,2]
[406325240,1771741842882,-588.245,0.00016927,2]
[406325242,1771741842890,-636.0,0.00016927,2]
[406325244,1771741842899,-2177.0,0.00016927,2]
[406325246,1771741842908,-401.8,0.00016927,2]
[406325248,1771741842917,-428.0,0.00016927,2]
[406325250,1771741842926,-159.391,0.00016927,2]
[406325252,1771741842935,-181.0,0.00016927,2]
[406325254,1771741842950,-10000.0,0.00017,2]
[406325256,1771741842959,-19745.72164027,0.00017,2]
[406325258,1771741842968,-362.0,0.00017383,2]
[406325260,1771741842977,-410.45815064,0.00017532,2]
[406325262,1771741842987,-2000.0,0.00017718,7]
[406325264,1771741842996,-35647.82341987,0.00018,2]
[406325266,1771741843006,-1815.0,0.00018,2]
[406325268,1771741843015,-15055.77990166,0.00018,2]
[406325270,1771741843024,-7354.13869826,0.00018439,2]
[406325272,1771741843034,-1000.0,0.00018533,2]
[406325274,1771741843043,-285.0,0.00018562,2]
[406325276,1771741843052,-151.0,0.000187,2]
[406325278,1771741843061,-5000.0,0.00018768,2]
[406325280,1771741843070,-151.0,0.00019178,2]
[406325282,1771741843079,-151.0,0.00019178,2]
[406325283,1771741843088,-151.0,0.00019178,2]
[406325284,1771741843097,-151.0,0.00019178,2]
[406325285,1771741843106,-151.0,0.00019178,2]
[406325286,1771741843115,-151.0,0.00019178,2]
[406325287,1771741843124,-151.0,0.00019178,2]
[406325288,1771741843133,-151.0,0.00019178,2]
[406325289,1771741843142,-151.0,0.00019178,2]
[406325290,1771741843151,-151.0,0.00019178,2]
[406325291,1771741843160,-151.0,0.00019178,2]
[406325292,1771741843169,-151.0,0.00019178,2]
[406325293,1771741843178,-151.0,0.00019178,2]
[406325294,1771741843187,-151.0,0.00019178,2]
[406325295,1771741843197,-151.0,0.00019178,2]
[406325296,1771741843206,-151.0,0.00019178,2]
[406325297,1771741843216,-151.0,0.00019178,2]
[406325298,1771741843228,-151.0,0.00019178,2]
[406325299,1771741843237,-222.49008,0.00019178,2]
[406325300,1771741843249,-151.0,0.00019178,2]
[406325301,1771741843259,-151.0,0.00019178,2]
[406325302,1771741843267,-151.0,0.00019178,2]
[406325303,1771741843277,-151.0,0.00019178,2]
[406325304,1771741843286,-151.0,0.00019178,2]
[406325305,1771741843296,-151.0,0.00019178,2]
[406325306,1771741843307,-151.0,0.00019178,2]
[406325307,1771741843317,-151.0,0.00019178,2]
[406325308,1771741843326,-151.0,0.00019178,2]
[406325309,1771741843335,-151.0,0.00019178,2]
[406325310,1771741843345,-151.0,0.00019178,2]
[406325311,1771741843354,-151.0,0.00019178,2]
[406325312,1771741843363,-151.0,0.00019178,2]
[406325313,1771741843373,-151.0,0.00019178,2]
[406325314,1771741843385,-151.0,0.00019178,2]
[406325315,1771741843396,-151.0,0.00019178,2]
[406325316,1771741843406,-259.458581,0.00019178,2]
[406325317,1771741843416,-156.0,0.00019178,2]
[406325318,1771741843426,-156.0,0.00019178,2]
[406325319,1771741843435,-162.77,0.000192,2]
[406325320,1771741843445,-161.81,0.000192,2]
[406325321,1771741843455,-632.0,0.00019927,2]
[406325322,1771741843464,-2177.0,0.00019927,2]
[406325323,1771741843473,-428.0,0.00019927,2]
[406325324,1771741843483,-181.0,0.00019927,2]
[406325325,1771741843492,-200.0,0.0002,2]
[406325326,1771741843501,-236.82407948,0.0002,2]
[406325327,1771741843511,-150.0,0.0002,10]
[406325328,1771741843520,-373.66840616,0.0002,2]
[406325330,1771741843529,-23000.0,0.0002,2]
[406325331,1771741843540,-203.85706365,0.0002,2]
[406325332,1771741843549,-199.56175323,0.0002,2]
[406325333,1771741843559,-5000.0,0.00020332,2]
[406325334,1771741843568,-797.4,0.000204,2]
[406325335,1771741843577,-349.064905,0.00020548,2]
[406325336,1771741843587,-312.0,0.00020562,2]
[406325337,1771741843596,-504.961,0.000212,2]
[406325338,1771741843605,-156.0,0.00021667,2]
[406325339,1771741843614,-500.0,0.00021918,2]
[406325340,1771741843623,-500.0,0.00021918,2]
[406325341,1771741843633,-500.0,0.00021918,2]
[406325342,1771741843642,-500.0,0.00021918,2]
[406325343,1771741843651,-500.0,0.00021918,2]
[406325344,1771741843661,-500.0,0.00021918,2]
[406325345,1771741843670,-500.0,0.00021918,2]
[406325346,1771741843680,-500.0,0.00021918,2]
[406325347,1771741843690,-500.0,0.00021918,2]
[406325348,1771741843760,-500.0,0.00021918,2]
[406325349,1771741843770,-500.0,0.00021918,2]
[406325350,1771741843780,-500.0,0.00021918,2]
[406325351,1771741843789,-500.0,0.00021918,2]
[406325352,1771741843799,-500.0,0.00021918,2]
[406325353,1771741843808,-500.0,0.00021918,2]
[406325354,1771741843818,-500.0,0.00021918,2]
[406325355,1771741843828,-500.0,0.00021918,2]
[406325356,1771741843837,-358.37376151,0.00021918,2]
[406325357,1771741843846,-500.0,0.00021918,2]
[406325358,1771741843856,-500.0,0.00021918,2]
[406325359,1771741843866,-500.0,0.00021918,2]
[406325360,1771741843875,-500.0,0.00021918,2]
[406325361,1771741843884,-500.0,0.00021918,2]
[406325362,1771741843894,-500.0,0.00021918,2]
[406325363,1771741843903,-500.0,0.00021918,2]
[406325364,1771741843912,-500.0,0.00021918,2]
[406325365,1771741843922,-500.0,0.00021918,2]
[406325366,1771741843930,-500.0,0.00021918,2]
[406325367,1771741843943,-500.0,0.00021918,2]
[406325368,1771741843952,-500.0,0.00021918,2]
[406325369,1771741843961,-500.0,0.00021918,2]
[406325370,1771741843970,-500.0,0.00021918,2]
[406325371,1771741843979,-500.0,0.00021918,2]
[406325372,1771741843989,-500.0,0.00021918,2]
[406325373,1771741843998,-225.36385361,0.00021918,2]
[406325374,1771741844007,-500.0,0.00021918,2]
[406325375,1771741844018,-500.0,0.00021918,2]
[406325376,1771741844027,-163.74,0.00021918,2]
[406325377,1771741844036,-69594.38,0.00022,2]
[406325378,1771741844045,-1047.0,0.00022081,10]
[406325379,1771741844055,-302.637,0.00022132,2]
[406325380,1771741844065,-191.67786838,0.00022132,2]
[406325381,1771741844074,-159.47,0.000223,7]
[406325382,1771741844083,-339.0,0.00022562,2]
[406325383,1771741844092,-2177.0,0.00022927,2]
[406325384,1771741844102,-428.0,0.00022927,2]
[406325385,1771741844112,-7354.13869826,0.00023046,2]
[406325386,1771741844121,-797.4,0.000235,2]
[406325387,1771741844131,-162.77,0.000238,14]
[406325388,1771741844142,-744.00654836,0.00023881,2]
[406325389,1771741844151,-69594.38,0.000243,2]
[406325390,1771741844160,-366.0,0.00024562,2]
[406325391,1771741844169,-197.4367329,0.00024983,15]
[406325392,1771741844179,-270.75,0.00025,7]
[406325393,1771741844189,-1138.325087,0.00025,5]
[406325394,1771741844198,-151.0,0.000253,12]
[406325395,1771741844207,-959.0,0.0002538,10]
[406325396,1771741844216,-2177.0,0.00025927,2]
[406325397,1771741844226,-793.75805459,0.00026083,2]
[406325398,1771741844235,-156.098,0.00026167,2]
[406325399,1771741844244,-672.40486274,0.00026257,90]
[406325400,1771741844253,-672.40486274,0.00026257,90]
[406325401,1771741844262,-480.28918767,0.00026257,90]
[406325402,1771741844271,-393.0,0.00026562,2]
[406325403,1771741844280,-797.4,0.000269,2]
[406325404,1771741844289,-500.0,0.00026957,7]
[406325405,1771741844298,-199.88007195,0.00027,5]
[406325406,1771741844307,-69594.38,0.000271,2]
[406325407,1771741844316,-151.0,0.000272,14]
[406325408,1771741844325,-162.77,0.000274,14]
[406325409,1771741844334,-500.0,0.0002745,7]
[406325410,1771741844343,-7354.13869826,0.00027653,2]
[406325411,1771741844352,-270.75,0.00027752,7]
[406325412,1771741844362,-550.51411143,0.00027907,7]
[406325413,1771741844371,-199.88007195,0.00028,5]
[406325414,1771741844381,-500.0,0.00028017,7]
[406325415,1771741844390,-500.0,0.00028027,7]
[406325416,1771741844400,-500.0,0.00028231,7]
[406325417,1771741844409,-500.0,0.0002833,7]
[406325418,1771741844419,-420.0,0.00028562,2]
[406325419,1771741844428,-2177.0,0.00028927,2]
[406325420,1771741844437,-311.3276651,0.00029,5]
[406325421,1771741844447,-151.0,0.000291,17]
[406325422,1771741844456,-69594.38,0.000291,2]
[406325423,1771741844465,-797.4,0.000293,2]
[406325424,1771741844475,-500.0,0.00029306,7]
[406325425,1771741844484,-500.0,0.0002939,7]
[406325426,1771741844493,-550.0,0.0002983,30]
[406325427,1771741844502,-550.0,0.0002983,30]
[406325428,1771741844511,-523.0,0.0002983,30]
[406325429,1771741844520,-500.0,0.00029892,7]
[406325430,1771741844529,-355.28611922,0.00029966,22]
[406325431,1771741844539,-1637.32436564,0.0003,4]
[406325432,1771741844548,-1243.05,0.0003,30]
[406325433,1771741844558,-829.29453179,0.0003,7]
[406325434,1771741844569,-2000.0,0.00030137,2]
[406325435,1771741844578,-2000.0,0.00030137,2]
[406325436,1771741844587,-2000.0,0.00030137,2]
[406325438,1771741844597,-2000.0,0.00030137,2]
[406325439,1771741844607,-2000.0,0.00030137,2]
[406325440,1771741844617,-2000.0,0.00030137,2]
[406325441,1771741844626,-2000.0,0.00030137,2]
[406325442,1771741844635,-2000.0,0.00030137,2]
[406325443,1771741844644,-2000.0,0.00030137,2]
[406325444,1771741844654,-2000.0,0.00030137,2]
[406325445,1771741844663,-2000.0,0.00030137,2]
[406325446,1771741844672,-2000.0,0.00030137,2]
[406325447,1771741844681,-2000.0,0.00030137,2]
[406325448,1771741844691,-2000.0,0.00030137,2]
[406325449,1771741844700,-2000.0,0.00030137,2]
[406325450,1771741844709,-2000.0,0.00030137,2]
[406325451,1771741844719,-339.4379634,0.00030143,120]
[406325452,1771741844728,-270.75,0.00030505,30]
[406325453,1771741844737,-447.0,0.00030562,2]
[406325454,1771741844746,-162.77,0.000306,14]
[406325455,1771741844755,-156.098,0.00030667,2]
[406325456,1771741844764,-58435.38938504,0.00030676,2]
[406325457,1771741844780,-500.0,0.0003068,7]
[406325458,1771741844789,-55355.72488618,0.00030986,2]
[406325459,1771741844798,-500.0,0.00031104,7]
[406325460,1771741844808,-500.0,0.00031133,7]
[406325461,1771741844877,-2000.0,0.00031137,2]
[406325462,1771741844887,-2000.0,0.00031137,2]
[406325463,1771741844897,-1493.0,0.00031137,2]
[406325464,1771741844906,-500.0,0.00031137,2]
[406325465,1771741844915,-500.0,0.00031137,2]
[406325466,1771741844924,-500.0,0.00031137,2]
[406325467,1771741844933,-500.0,0.00031137,2]
[406325468,1771741844946,-500.0,0.00031137,2]
[406325469,1771741844956,-500.0,0.00031137,2]
[406325470,1771741844965,-500.0,0.00031137,2]
[406325471,1771741844975,-500.0,0.00031137,2]
[406325472,1771741844985,-38714.31992675,0.00031299,2]
[406325473,1771741845123,-1038.28706012,0.00031299,2]
[406325474,1771741845425,-500.0,0.00011545,2]
[406325475,1771741845435,-500.0,0.00011545,2]
[406325476,1771741845444,-1000.0,0.00018533,2]
[406325477,1771741845454,-1000.0,0.00020387,2]
[406325478,1771741845463,-1000.0,0.00020387,2]
[406325479,1771741845472,-272.94677741,0.00020387,2]
[406325480,1771741845484,-306.05322259,0.00020387,2]
[406325481,1771741845493,-1000.0,0.00022426,10]
[406325482,1771741845502,-500.0,0.00031137,2]
[406325483,1771741845511,-500.0,0.00031137,2]
[406325484,1771741845520,-500.0,0.00031137,2]
[406325485,1771741845529,-2118.90759791,0.00031299,2]
[406325486,1771741845544,-671.77936835,0.00031299,2]
[406325495,1771741845812,-893.17764823,0.0001143,2]
[406325496,1771741845824,-4106.82235177,0.0001143,2]
[406325497,1771741845832,-1000.0,0.00022426,10]
[406325498,1771741845841,-1000.0,0.00022426,10]
[406325499,1771741845850,-1000.0,0.00024668,10]
[406325500,1771741845859,-1000.0,0.00024668,10]
[406325501,1771741845868,-1000.0,0.00024668,10]
[406325502,1771741845877,-715.0,0.00024668,10]
[406325503,1771741845886,-500.0,0.00031137,2]
[406325504,1771741845895,-500.0,0.00031137,2]
[406325505,1771741845905,-500.0,0.00031137,2]
[406325506,1771741845914,-21668.88925379,0.00031299,2]
[406325507,1771741845924,-545.755977,0.00031299,2]
[406325508,1771741846091,-524.0,0.0002538,10]
[406325509,1771741846101,-186.13559901,0.00031137,2]
[406325510,1771741846126,-313.86440099,0.00031137,2]
[406325511,1771741846136,-500.0,0.00031137,2]
[406325512,1771741846146,-500.0,0.00031137,2]
[406325513,1771741846156,-121.89243111,0.00031299,2]
[406325514,1771741846166,-369.86579872,0.00031299,2]
[406325515,1771741846184,-160.0,0.00031137,2]
[406325516,1771741846194,-138982.80152929,0.00031299,2]
[406325517,1771741899812,422.45305232,9.324e-05,2]
[406325518,1771742072330,173.0,4.3e-07,2]
[406325519,1771742073502,173.0,4.3e-07,2]
[406325520,1771742074557,173.0,4.3e-07,2]
[406325521,1771742075585,173.0,4.3e-07,2]
[406325569,1771743032125,-616.04125667,0.00012687,2]
[406325571,1771743032136,-745.39781349,0.00012687,2]
[406325914,1771743038411,-3638.56092984,0.00012687,2]
[406325915,1771743038420,-601.0,0.00012815,2]
[406325916,1771743038430,-150.0,0.0001288,2]
[406325917,1771743038439,-666.93415437,0.00013271,2]
[406325918,1771743038473,-386.06584563,0.00013271,2]
[406325919,1771743038483,-300.0,0.00013272,2]
[406325920,1771743038502,-300.0,0.00013272,2]
[406325921,1771743038514,-300.0,0.00013272,2]
[406325922,1771743038523,-555.16858422,0.00013273,2]
[406325923,1771743038534,-160.95138193,0.00013273,2]
[406325926,1771743040781,-45.92301545,0.00013273,2]
[406325927,1771743040794,-162.14362866,0.00013273,2]
[406325928,1771743040804,-172.29589476,0.00013273,2]
[406325937,1771743046267,-327.70410524,0.00013273,2]
[406325938,1771743046281,-500.0,0.00013273,2]
[406325939,1771743046291,-500.0,0.00013273,2]
[406325941,1771743046300,-500.0,0.00013273,2]
[406325942,1771743046311,-162.21935436,0.00013699,2]
[406325943,1771743046321,-500.0,0.00013699,2]
[406325944,1771743046330,-500.0,0.00013699,2]
[406325945,1771743046340,-500.0,0.00013699,2]
[406325946,1771743046350,-500.0,0.00013699,2]
[406325947,1771743046359,-506.70594377,0.00013699,2]
[406325948,1771743046368,-500.0,0.00013699,2]
[406325949,1771743046377,-500.0,0.00013699,2]
[406325950,1771743046387,-500.0,0.00013699,2]
[406325951,1771743046396,-507.72495053,0.00013699,2]
[406325952,1771743046404,-3904.8124776,0.00014087,2]
[406325953,1771743046413,-2289.79283504,0.00014175,2]
[406325954,1771743046425,-2053.65603248,0.00014175,2]
[406325955,1771743046434,-1000.0,0.00014247,2]
[406325956,1771743046443,-1000.0,0.00014247,2]
[406325957,1771743046452,-1000.0,0.00014247,2]
[406325958,1771743046461,-1139.17637709,0.00014795,2]
[406325959,1771743046470,-54.55413622,0.0001488,2]
[406325963,1771743379038,152.57,0.00014,30]
[406326014,1771744232177,-179.08106082,0.00011077,2]
[406326016,1771744232187,-5000.0,0.00011189,2]
[406326018,1771744232196,-424.34696115,0.00011189,2]
[406326079,1771744238433,-152.65303885,0.00011189,2]
[406326080,1771744238443,-203.96655993,0.00011302,2]
[406326081,1771744238453,-150.0,0.00011474,2]
[406326082,1771744238463,-300.0,0.00012347,2]
[406326083,1771744238473,-9322.9559067,0.00012348,2]
[406326084,1771744238482,-300.0,0.00012635,2]
[406326085,1771744238491,-557.60955597,0.00013273,2]
[406326086,1771744238501,-209.16106815,0.00013273,2]
[406326087,1771744238511,-500.0,0.00013273,2]
[406326088,1771744238520,-500.0,0.00013273,2]
[406326089,1771744238530,-500.0,0.00013273,2]
[406326090,1771744238540,-500.0,0.00013273,2]
[406326091,1771744238550,-500.0,0.00013273,2]
[406326092,1771744238559,-250.0,0.00013335,2]
[406326093,1771744238568,-158.73701792,0.00013474,2]
[406326094,1771744238578,-506.98645793,0.00013503,2]
[406326095,1771744238587,-500.0,0.00013503,2]
[406326096,1771744238597,-500.0,0.00013503,2]
[406326097,1771744238606,-500.0,0.00013503,2]
[406326098,1771744238615,-500.0,0.00013503,2]
[406326099,1771744238625,-500.0,0.00013503,2]
[406326100,1771744238634,-500.0,0.00013503,2]
[406326101,1771744238643,-450.3928436,0.00013503,2]
[406326102,1771744238653,-500.0,0.00013503,2]
[406326103,1771744238662,-500.0,0.00013503,2]
[406326104,1771744238672,-500.0,0.00013503,2]
[406326105,1771744238681,-294.68085262,0.00013503,2]
[406326106,1771744238693,-500.0,0.00013503,2]
[406326107,1771744238702,-500.0,0.00013503,2]
[406326108,1771744238712,-500.0,0.00013503,2]
[406326109,1771744238721,-500.0,0.00013503,2]
[406326110,1771744238731,-500.0,0.00013503,2]
[406326111,1771744238741,-500.0,0.00013503,2]
[406326112,1771744238751,-500.0,0.00013503,2]
[406326113,1771744238762,-500.0,0.00013503,2]
[406326114,1771744238772,-500.0,0.00013503,2]
[406326115,1771744238782,-500.0,0.00013503,2]
[406326116,1771744238792,-500.0,0.00013503,2]
[406326117,1771744238801,-533.75116387,0.00013503,2]
[406326118,1771744238811,-500.0,0.00013503,2]
[406326119,1771744238820,-500.0,0.00013503,2]
[406326120,1771744238829,-334.6325058,0.00013503,2]
[406326121,1771744238839,-407.35739524,0.00013503,2]
[406326122,1771744238849,-500.0,0.00013504,2]
[406326123,1771744238860,-519.0513109,0.00013504,2]
[406326124,1771744238869,-500.0,0.00013504,2]
[406326125,1771744238879,-500.0,0.00013504,2]
[406326126,1771744238889,-500.0,0.00013504,2]
[406326127,1771744238899,-500.0,0.00013504,2]
[406326128,1771744238911,-500.0,0.00013504,2]
[406326129,1771744238921,-500.0,0.00013504,2]
[406326130,1771744238930,-500.0,0.00013504,2]
[406326131,1771744238940,-500.0,0.00013504,2]
[406326132,1771744238950,-500.0,0.00013504,2]
[406326133,1771744238959,-500.0,0.00013504,2]
[406326134,1771744238969,-500.0,0.00013504,2]
[406326135,1771744238978,-500.0,0.00013504,2]
[406326136,1771744238988,-500.0,0.00013504,2]
[406326137,1771744238997,-500.0,0.00013504,2]
[406326138,1771744239007,-3582.08502255,0.00013599,2]
[406326139,1771744239016,-524.47667572,0.00013699,2]
[406326140,1771744239026,-370.95896754,0.00013699,2]
[406326141,1771744239035,-500.0,0.00013699,2]
[406326142,1771744239044,-164.58997915,0.00013699,2]
[406326143,1771744239054,-500.90548219,0.00013699,2]
[406326144,1771744239063,-438.16441978,0.00013699,2]
[406326145,1771744239073,-500.0,0.00013699,2]
[406326146,1771744239082,-527.20661136,0.00013699,2]
[406326147,1771744239091,-500.0,0.00013699,2]
[406326148,1771744239100,-291.52075668,0.00013699,2]
[406326149,1771744239109,-488.60466573,0.00013699,2]
[406326150,1771744239118,-500.0,0.00013699,2]
[406326151,1771744239128,-161.84812936,0.00013699,2]
[406326152,1771744239137,-626.24037135,0.00013821,2]
[406326153,1771744239147,-497.65689516,0.00013821,2]
[406326154,1771744239156,-1000.0,0.00013821,2]
[406326155,1771744239166,-1000.0,0.00013821,2]
[406326156,1771744239175,-1000.0,0.00013821,2]
[406326157,1771744239184,-8672.92990158,0.00014175,2]
[406326158,1771744239193,-1000.0,0.00014247,2]